Cogmind - Beta 14 @@@ ROGUE MODE // 2024.09.04 @ 17:26:05 Player: THN-L0C Result: Destroyed by G-50 Soldier with Heavy Laser Performance ------------- Evolutions (3) 1500 Regions Visited (10) 2000 Robots Destroyed (87) 435 Value Destroyed (2398) 2398 Prototype IDs (37) 740 Alien Tech Used (0) 0 Bonus (671) 671 TOTAL SCORE: 7744 Bonus ------- Follower Combat Kills 179 Aligned with FarCom 300 Met Data Miner 300 Friendly Fire -108 Cogmind --------- Core Integrity 0/700 Matter 249/300 Energy 90/100 System Corruption 6% Temperature Cool (9) Movement Walking (125) Ox1 Location -6/Proximity Caves Parts ------- > --- POWER (2) -------- (None) > --- PROPULSION (2) --- Potential Leg Potential Leg > --- UTILITY (7) ------ Huge Storage Unit Advanced Weight Redist. System Improved Sensor Array Weapon Cycler Propulsion Shielding > --- WEAPON (2) ------- Gauss Rifle Long-range Missile Launcher > --- INVENTORY (25) --- Armored Treads Armored Treads Medium Treads Large Storage Unit Large Matter Pod (150) High-capacity Matter Pod (200) Seismic Detector Gatling Laser Proton Cannon Heavy Ion Cannon Heavy Ion Cannon Heavy Ion Cannon Gauss Rifle Gauss Rifle Rocket Launcher Plasma Cutter Great Maul Peak State ------------ > --- POWER ------------ Heavy Deuterium Engine Cooled Deuterium Engine > --- PROPULSION ------- Medium Treads Medium Treads > --- UTILITY ---------- Cryofiber Web Improved Heat Sink Huge Storage Unit Energy Filter Weapon Cycler Improved Weapon Shielding Improved Medium Armor Plating > --- WEAPON ----------- Heavy Ion Cannon Heavy Ion Cannon > --- INVENTORY -------- Armored Treads Armored Treads Medium Treads Potential Leg Potential Leg Large Storage Unit Large Matter Pod High-capacity Matter Pod Advanced Weight Redist. System Improved Sensor Array Propulsion Shielding Gatling Laser Gatling Laser Gatling Laser Heavy Ion Cannon Heavy Ion Cannon Gauss Rifle Gauss Rifle Gauss Rifle Rocket Launcher Rocket Launcher Plasma Cutter Great Maul [Rating: 56] Favorites ----------- Power Light Ion Engine Engine Light Ion Engine Power Core Micro Nuclear Core Propulsion Medium Treads Treads Medium Treads Leg Potential Leg Utility Huge Storage Unit Device Improved Heat Sink Storage Huge Storage Unit Hackware Hacking Suite Protection Light Armor Plating Weapon Heavy Ion Cannon Energy Gun Gatling Laser Energy Cannon Heavy Ion Cannon Ballistic Gun Light Assault Rifle Launcher Grenade Launcher Special Weapon Mining Laser Impact Weapon Flail Build | -11 -10 -10 -10 -9 -8 -7 -7 -7 -7 -6 ------- Run | Yrd Mat Min Exi Min Mat Fac Low Low Dat Pro Slots Evolved 6 | . . . . . 4 2 . . . . Power 1 | . . . . . . 1 . . . . Propulsion . | . . . . . . . . . . . Utility 5 | . . . . . 4 1 . . . . Weapon . | . . . . . . . . . . . Parts Attached 136 | 7 9 22 8 5 25 25 10 4 2 19 Power 10 | 1 1 2 . 1 . 4 1 . . . Engine 8 | 1 1 2 . 1 . 2 1 . . . Core 2 | . . . . . . 2 . . . . Reactor . | . . . . . . . . . . . Propulsion 24 | 2 3 . 4 2 5 4 . . . 4 Treads 20 | 2 3 . 2 2 5 4 . . . 2 Leg 4 | . . . 2 . . . . . . 2 Wheel . | . . . . . . . . . . . Hover . | . . . . . . . . . . . Flight . | . . . . . . . . . . . Utility 52 | 2 3 11 4 1 11 6 6 . . 8 Device 28 | 1 1 5 . . 7 4 5 . . 5 Storage 5 | 1 1 . 3 . . . . . . . Processor . | . . . . . . . . . . . Hackware 1 | . . . . . . 1 . . . . Protection 18 | . 1 6 1 1 4 1 1 . . 3 Artifact . | . . . . . . . . . . . Weapon 50 | 2 2 9 . 1 9 11 3 4 2 7 Energy Gun 13 | . . 2 . . 2 4 1 2 . 2 Energy Cannon 19 | . . 1 . . 3 7 2 2 2 2 Ballistic Gun 11 | 2 1 3 . 1 2 . . . . 2 Ballistic Cannon . | . . . . . . . . . . . Launcher 3 | . 1 1 . . . . . . . 1 Special Weapon 2 | . . 2 . . . . . . . . Impact Weapon 2 | . . . . . 2 . . . . . Slashing Weapon . | . . . . . . . . . . . Piercing Weapon . | . . . . . . . . . . . Special Melee Weapon . | . . . . . . . . . . . Unidentified Prototypes 3 | . . . . . . 3 . . . . Parts Lost 26 | . 1 4 . . 4 2 3 . . 12 Power 4 | . 1 1 . . . . . . . 2 Propulsion 3 | . . . . . 1 . . . . 2 Utility 14 | . . 1 . . 2 2 3 . . 6 Weapon 5 | . . 2 . . 1 . . . . 2 Highest Loss Streak 5 | . 1 3 . . 3 1 3 . . 5 To Critical Strikes . | . . . . . . . . . . . Average Slot Usage (%) 97 | . 98 99 99 100 94 99 98 100 85 89 Engine 12 | . 12 13 14 14 9 7 15 15 15 12 Treads 18 | . 28 28 18 3 17 15 15 15 15 11 Leg 2 | . . . 9 24 . . . . . 3 Device 20 | . 13 4 . . 22 27 35 46 46 34 Storage 10 | . 14 14 13 14 9 7 7 7 7 7 Protection 9 | . . 9 14 14 17 15 8 . . 3 Energy Gun 2 | . . 3 . . 4 3 . . . 3 Energy Cannon 8 | . . 5 14 12 8 11 15 14 1 8 Ballistic Gun 6 | . 28 9 . 1 3 . . . . 2 Launcher 3 | . . 6 14 14 . . . . . . Peak Build Rating 56 | 7 11 12 29 29 39 55 56 53 53 53 Average Rating 31 | 5 7 10 16 26 33 49 53 52 45 46 On Entrance 29 | . 7 11 11 27 16 39 52 52 53 53 Naked Turns . | . . . . . . . . . . . Heaviest Build 131 | 11 31 34 92 96 111 131 131 124 124 125 Greatest Support 69 | 40 46 46 60 60 55 65 65 65 65 69 Greatest Overweight (x) 4 | 2 . . 3 4 4 2 2 1 1 3 Average Overweight (x) . | . . . . 1 1 1 1 1 1 1 Largest Inventory Capacity 25 | 8 15 15 25 25 25 25 25 25 25 25 Average Capacity 21 | 7 13 15 20 25 25 25 25 25 25 25 Most Carried 25 | 1 15 15 19 23 25 25 25 25 25 25 Average Carried 19 | . 9 14 15 19 23 24 23 25 25 20 Final Capacity 25 | 8 15 15 25 25 25 25 25 25 25 25 Final Carried 25 | 1 14 15 18 23 25 25 25 25 25 17 Class Distribution -------------------- 91% | Mutant 7% | Skirmisher Dominant Class ---------------- Mutant | -10/Materials Mutant | -10/Mines Mutant | -10/Exiles Mutant | -9/Mines Mutant | -8/Materials Mutant | -7/Factory Mutant | -7/Lower Caves Mutant | -7/Lower Caves Mutant | -7/Data Miner Mutant | -6/Proximity Caves Resources | -11 -10 -10 -10 -9 -8 -7 -7 -7 -7 -6 ----------- Run | Yrd Mat Min Exi Min Mat Fac Low Low Dat Pro Matter Collected 2696 | 201 335 332 100 219 541 525 216 43 . 184 Remotely . | . . . . . . . . . . . Salvage Created 2722 | 79 349 325 . 31 376 730 455 59 . 318 Parts 169 | 7 36 24 . 6 21 42 15 4 . 14 Haulers Intercepted 4 | . 1 . . . 1 2 . . . . Recyclers Shooed 2 | . 1 . . . . 1 . . . . Parts Field Recycled . | . . . . . . . . . . . Retrieved Matter . | . . . . . . . . . . . Parts Self-Destructed 40 | . . . . . . . 17 4 . 19 Prevented . | . . . . . . . . . . . Kills | -11 -10 -10 -10 -9 -8 -7 -7 -7 -7 -6 ------- Run | Yrd Mat Min Exi Min Mat Fac Low Low Dat Pro Combat Hostiles Destroyed 68 | . 8 12 . 4 12 13 8 3 . 8 Guns 25 | . 8 5 . . 4 3 . 3 . 2 Cannons 23 | . . 3 . . . 8 7 . . 5 AOE 17 | . . 4 . 4 8 . . . . 1 Classes Destroyed 15 | 2 4 2 . . 1 2 3 . . 1 Worker 5 | . . . . . 4 1 . . . . Tunneler 3 | 2 . 1 . . . . . . . . Hauler 4 | . 1 . . . 1 2 . . . . Recycler 4 | 1 1 . . . 1 1 . . . . Drone 2 | . . . . . . . . . . 2 Watcher 5 | . 3 . . . 2 . . . . . Swarmer 27 | . 6 3 . 4 6 3 . 3 . 2 Grunt 24 | . 2 5 . . 6 4 4 . . 3 Brawler 2 | . . . . . . . 2 . . . Duelist 1 | . . . . . . . 1 . . . Sentry 2 | . . 2 . . . . . . . . Hunter 3 | . . . . . . 2 . . . 1 Programmer 4 | . . . . . . 4 . . . . Assembled 2 | . . 2 . . . . . . . . Mutant 1 | . . . . . . . 1 . . . Best Kill Streak 7 | 3 4 5 . 4 7 2 4 3 . 4 Combat Bots Only 6 | . 4 4 . 4 6 2 4 3 . 4 Max Kills in Single Turn 5 | 1 1 5 . 4 3 1 1 1 . 1 Gunslinging . | . . . . . . . . . . . Exploded 4 | . . 4 . 4 3 . . . . 1 Melee . | . . . . . . . . . . . Uniques/NPCs Destroyed . | . . . . . . . . . . . Combat | -11 -10 -10 -10 -9 -8 -7 -7 -7 -7 -6 -------- Run | Yrd Mat Min Exi Min Mat Fac Low Low Dat Pro Hostile Shots Fired 453 | . 27 85 . 2 39 81 27 19 . 173 Missed 126 | . 7 20 . . 11 27 6 3 . 52 Damage Taken 5205 | . 255 929 . 39 340 1154 352 236 . 1900 Core 887 | . . 106 . . 65 297 47 28 . 344 Absorbed by Shields . | . . . . . . . . . . . Redirected to Shielding 140 | . . . . . . 96 8 . . 36 Regen/Repaired (Parts) 238 | . 17 . . . 221 . . . . . Core Remaining (%) 81 | 100 . . . 57 88 . . . . . Volleys Fired 249 | 8 44 49 . 2 40 47 26 5 . 28 Largest 2 | 2 2 2 . 1 2 2 2 2 . 2 Hottest 160 | 40 40 100 . 30 160 160 130 160 . 160 Shots Fired 427 | 16 88 68 . 2 54 82 49 13 . 55 Gun 205 | 16 88 42 . . 23 8 . 10 . 18 Cannon 192 | . . 19 . . 12 74 49 3 . 35 Launcher 24 | . . 1 . 2 19 . . . . 2 Special 6 | . . 6 . . . . . . . . Kinetic 140 | 16 88 25 . . 11 . . . . . Thermal 263 | . . 42 . . 24 82 49 13 . 53 Explosive 24 | . . 1 . 2 19 . . . . 2 Electromagnetic . | . . . . . . . . . . . Robot Hit Streak 16 | 6 9 11 . 5 8 11 16 4 . 8 Robot Miss Streak 10 | 2 6 2 . . 10 3 2 5 . 7 Penetration Max . | . . . . . . . . . . . Secondary Targets 3 | . 1 . . . . 1 . 1 . . Max Gunslinging Chain 1 | . 1 . . . . 1 . 1 . . Shots Hit Robots 261 | 11 48 45 . 1 24 54 36 9 . 33 Core Hits 151 | 7 25 22 . 3 36 20 12 6 . 20 Critical Kills 3 | . . . . . . 2 1 . . . Critical Parts Destroyed . | . . . . . . . . . . . Critical Strikes 6 | . . 3 . . . 2 1 . . . Burn 3 | . . 3 . . . . . . . . Meltdown 3 | . . . . . . 2 1 . . . Melee Attacks 5 | . . . . . 5 . . . . . Impact 5 | . . . . . 5 . . . . . Slashing . | . . . . . . . . . . . Piercing . | . . . . . . . . . . . Sneak Attacks . | . . . . . . . . . . . Combat Hostiles . | . . . . . . . . . . . Follow-up Attacks . | . . . . . . . . . . . Damage Inflicted 6680 | 87 447 861 . 114 1414 1544 1007 157 . 1049 Guns 1628 | 87 447 428 . . 203 96 . 157 . 210 Cannons 3492 | . . 260 . . 134 1390 1007 . . 701 Explosions 1522 | . . 165 . 114 1066 39 . . . 138 Melee . | . . . . . . . . . . . Ramming 38 | . . 8 . . 11 19 . . . . Kinetic 868 | 87 447 255 . . 79 . . . . . Thermal 4331 | . . 512 . . 258 1486 1007 157 . 911 Explosive 1443 | . . 86 . 114 1066 39 . . . 138 Electromagnetic . | . . . . . . . . . . . Impact . | . . . . . . . . . . . Slashing . | . . . . . . . . . . . Piercing . | . . . . . . . . . . . Highest Corruption 6 | . . . . . 1 6 6 6 6 6 Average Corruption 4 | . . . . . 1 3 6 6 6 6 Corruption Purged . | . . . . . . . . . . . Corruption Blocked . | . . . . . . . . . . . Effects 113 | . . . . . 13 17 33 23 6 21 Message Errors 29 | . . . . . 2 7 6 9 1 4 Matter Fused 25 | . . . . . 5 3 9 2 3 3 Heat Flow Errors 16 | . . . . . 2 2 . 7 1 4 Energy Discharges 11 | . . . . . 1 1 6 . . 3 Parts Fused 1 | . . . . . . 1 . . . . Data Loss (minor) 17 | . . . . . 1 2 9 1 1 3 Data Loss (major) 2 | . . . . . . . . . . 2 Misfires 7 | . . . . . 2 . 1 3 . 1 Alerts 4 | . . . . . . 1 1 1 . 1 Weapon Failures 1 | . . . . . . . 1 . . . Overload Shots . | . . . . . . . . . . . Overflow Damage 113 | . . 18 . 10 3 38 44 . . . Projectiles 82 | . . . . . . 38 44 . . . Explosions 31 | . . 18 . 10 3 . . . . . Melee . | . . . . . . . . . . . Knockbacks . | . . . . . . . . . . . Impact . | . . . . . . . . . . . Kinetic . | . . . . . . . . . . . Secondary . | . . . . . . . . . . . Self-Inflicted Damage 169 | . . 10 . 22 24 113 . . . . Shots 5 | . . 1 . 1 2 1 . . . . Rammed 4 | . 1 1 . . 1 1 . . . . Targets Rammed 6 | . 1 1 . . 2 2 . . . . Kicked . | . . . . . . . . . . . Crushed 2 | . . . . . 1 1 . . . . Highest Temperature 294 | . 18 294 . . 131 110 135 228 . 164 Average Temperature 83 | . 11 102 . . 52 53 59 97 . 57 Received Heat Transfer 1479 | . 63 363 . . 153 108 246 . . 546 Effects 3 | . . 3 . . . . . . . . Energy Bleed 2 | . . 2 . . . . . . . . Interference 1 | . . 1 . . . . . . . . Siege Activations . | . . . . . . . . . . . Robots Corrupted . | . . . . . . . . . . . Combat Hostiles . | . . . . . . . . . . . Parts Fried . | . . . . . . . . . . . Impact Corruptions . | . . . . . . . . . . . Robots Melted 4 | . . . . . . 3 1 . . . Combat Hostiles 3 | . . . . . . 2 1 . . . Parts Melted 17 | . . 3 . . 1 6 4 1 . 2 Heat Transferred 6988 | . . 1334 . . 460 2001 1369 350 . 1474 Parts Sabotaged . | . . . . . . . . . . . Parts Stolen . | . . . . . . . . . . . Parts Stripped . | . . . . . . . . . . . Power Chain Reactions . | . . . . . . . . . . . Alert | -11 -10 -10 -10 -9 -8 -7 -7 -7 -7 -6 ------- Run | Yrd Mat Min Exi Min Mat Fac Low Low Dat Pro Peak Influence 313 | 15 303 173 . 107 313 222 . . . . Initial 41 | . 9 . . . 41 16 . . . . Average 64 | 5 83 58 . 9 69 69 . . . . Maximum Alert Level 1 | . 1 . . . 1 1 . . . . Low Security (%) 92 | 100 89 100 . 100 90 88 . . . . Level 1 7 | . 10 . . . 9 11 . . . . Level 2 . | . . . . . . . . . . . Level 3 . | . . . . . . . . . . . Level 4 . | . . . . . . . . . . . Level 5 . | . . . . . . . . . . . High Security . | . . . . . . . . . . . Max Security . | . . . . . . . . . . . Squads Dispatched 10 | . 2 . . . 2 6 . . . . Investigation 3 | . 2 . . . . 1 . . . . Extermination 3 | . . . . . . 3 . . . . Reinforcement 3 | . . . . . 1 2 . . . . Assault . | . . . . . . . . . . . Garrison 1 | . . . . . 1 . . . . . Intercept . | . . . . . . . . . . . Searches Triggered . | . . . . . . . . . . . Construction Impeded 1 | . . . . . 1 . . . . . Haulers Reinforced 1 | . . . . . . 1 . . . . Active Scanning Responses . | . . . . . . . . . . . Cargo Convoy Interrupts 1 | . . . . . . 1 . . . . Stealth | -11 -10 -10 -10 -9 -8 -7 -7 -7 -7 -6 --------- Run | Yrd Mat Min Exi Min Mat Fac Low Low Dat Pro Distress Signals 4 | . . . . . 3 1 . . . . Communications Jammed 18 | . . . . . . 18 . . . . Distress Signals 18 | . . . . . . 18 . . . . Times Spotted 115 | . 17 14 . 2 25 21 11 3 . 22 Peak Tracking Total 10 | . 4 4 . 4 7 4 4 3 . 10 Tactical Retreats 6 | . 3 1 . . 1 1 . . . . Traps | -11 -10 -10 -10 -9 -8 -7 -7 -7 -7 -6 ------- Run | Yrd Mat Min Exi Min Mat Fac Low Low Dat Pro Traps Triggered 4 | . 3 . . . 1 . . . . . Indirectly . | . . . . . . . . . . . Trap Hack Attempts . | . . . . . . . . . . . Triggered . | . . . . . . . . . . . Disarmed . | . . . . . . . . . . . Reprogrammed . | . . . . . . . . . . . Reused . | . . . . . . . . . . . Traps Extracted . | . . . . . . . . . . . Installed . | . . . . . . . . . . . Triggered 1 | . . . . . . 1 . . . . Machines | -11 -10 -10 -10 -9 -8 -7 -7 -7 -7 -6 ---------- Run | Yrd Mat Min Exi Min Mat Fac Low Low Dat Pro Machines Disabled 6 | . . 2 . . . 2 1 . . 1 Max in Single Turn 2 | . . 2 . . . 1 1 . . . Garrison Access 1 | . . . . . . 1 . . . . Machines Repaired . | . . . . . . . . . . . Machines Dismantled . | . . . . . . . . . . . Machines Sabotaged . | . . . . . . . . . . . Overloaded Fab Kills . | . . . . . . . . . . . Hacking | -11 -10 -10 -10 -9 -8 -7 -7 -7 -7 -6 --------- Run | Yrd Mat Min Exi Min Mat Fac Low Low Dat Pro Machines Accessed 25 | . 7 . 1 . 9 4 . . 4 . Terminals 13 | . 6 . . . 5 2 . . . . Fabricators . | . . . . . . . . . . . Repair Stations 2 | . 1 . . . 1 . . . . . Recycling Units . | . . . . . . . . . . . Scanalyzers 3 | . . . . . 2 1 . . . . Garrison Access 2 | . . . . . 1 1 . . . . Total Hacks 110 | . 30 . 1 . 37 13 . . 29 . Successful 81 | . 14 . 1 . 26 11 . . 29 . Failed 29 | . 16 . . . 11 2 . . . . Catastrophic 3 | . 2 . . . 1 . . . . . Database Lockouts . | . . . . . . . . . . . Manual 46 | . 27 . 1 . 15 3 . . . . Terminals 47 | . 26 . . . 16 5 . . . . Fabricators . | . . . . . . . . . . . Repair Stations 10 | . 4 . . . 6 . . . . . Recycling Units . | . . . . . . . . . . . Scanalyzers 18 | . . . . . 12 6 . . . . Garrison Access 5 | . . . . . 3 2 . . . . Terminal Hacks 37 | . 4 . 1 . 1 2 . . 29 . Record 11 | . . . . . . . . . 11 . Part Schematic 9 | . . . . . . . . . 9 . Robot Schematic 7 | . 1 . . . . . . . 6 . Robot Analysis 2 | . 2 . . . . . . . . . Prototype ID Bank 3 | . . . . . . . . . 3 . Terminal Index 1 | . . . . . . 1 . . . . Unreport Threat 1 | . . . . . . 1 . . . . Locate Traps 1 | . . . . . 1 . . . . . Recall Investigation 1 | . 1 . . . . . . . . . Derelict Proto ID Bank 1 | . . . 1 . . . . . . . Fabricator Hacks . | . . . . . . . . . . . Repair Station Hacks 8 | . 2 . . . 6 . . . . . Scan Component 4 | . 1 . . . 3 . . . . . Repair 4 | . 1 . . . 3 . . . . . Recycling Unit Hacks . | . . . . . . . . . . . Scanalyzer 17 | . . . . . 11 6 . . . . Insert Component 8 | . . . . . 5 3 . . . . Analyze 9 | . . . . . 6 3 . . . . Garrison Access Hacks 1 | . . . . . . 1 . . . . Seal Access 1 | . . . . . . 1 . . . . Unauthorized Hacks 18 | . 8 . . . 8 2 . . . . Terminals 18 | . 8 . . . 8 2 . . . . Botnet 6 | . 3 . . . 3 . . . . . Skim 12 | . 5 . . . 5 2 . . . . Fabricators . | . . . . . . . . . . . Repair Stations . | . . . . . . . . . . . Recycling Units . | . . . . . . . . . . . Scanalyzers . | . . . . . . . . . . . Garrison Access . | . . . . . . . . . . . Data Cores Recovered . | . . . . . . . . . . . Used . | . . . . . . . . . . . Hacking Detections 18 | . 7 . . . 8 3 . . . . Full Trace Events 2 | . . . . . 1 1 . . . . Feedback Events . | . . . . . . . . . . . Feedback Blocked . | . . . . . . . . . . . Robot Schematics Acquired 7 | . 1 . . . . . . . 6 . Robots Built . | . . . . . . . . . . . Authchips . | . . . . . . . . . . . Time . | . . . . . . . . . . . Total Robot Build Rating . | . . . . . . . . . . . Part Schematics Acquired 17 | . . . . . 5 3 . . 9 . Parts Built . | . . . . . . . . . . . Authchips . | . . . . . . . . . . . Time . | . . . . . . . . . . . Total Part Build Rating . | . . . . . . . . . . . Parts Repaired 4 | . 1 . . . 3 . . . . . Time 97 | . 13 . . . 84 . . . . . Parts Recycled . | . . . . . . . . . . . Recycled Matter . | . . . . . . . . . . . Retrieved Matter . | . . . . . . . . . . . Retrieved Components . | . . . . . . . . . . . Parts Scanalyzed 8 | . . . . . 5 3 . . . . Part Schematics Acquired 8 | . . . . . 5 3 . . . . Parts Damaged . | . . . . . . . . . . . Bothacking | -11 -10 -10 -10 -9 -8 -7 -7 -7 -7 -6 ------------ Run | Yrd Mat Min Exi Min Mat Fac Low Low Dat Pro Used RIF Installer . | . . . . . . . . . . . Robots Hacked . | . . . . . . . . . . . Non-combat . | . . . . . . . . . . . Combat . | . . . . . . . . . . . Robot Hacks Applied . | . . . . . . . . . . . Relay Couplers Released . | . . . . . . . . . . . Fabnet Peak Effective % . | . . . . . . . . . . . Robots Rewired . | . . . . . . . . . . . Allies Hacked . | . . . . . . . . . . . Hacks Repelled . | . . . . . . . . . . . Allies | -11 -10 -10 -10 -9 -8 -7 -7 -7 -7 -6 -------- Run | Yrd Mat Min Exi Min Mat Fac Low Low Dat Pro Total Allies 4 | . . 3 . . . . . . . 1 Largest Group 3 | . . 3 . . . . . . . 1 Highest-Rated Group 96 | . . 40 . . . . . . . 96 Highest-Rated Ally 96 | . . 16 . . . . . . . 96 Total Orders . | . . . . . . . . . . . Ally Attacks 37 | . . 15 . . . . . . . 22 Total Damage 569 | . . 159 . . . . . . . 410 Kills 6 | . . 1 . . . . . . . 5 Allies Corrupted . | . . . . . . . . . . . Allies Melted . | . . . . . . . . . . . Intel | -11 -10 -10 -10 -9 -8 -7 -7 -7 -7 -6 ------- Run | Yrd Mat Min Exi Min Mat Fac Low Low Dat Pro Robot Analysis Total 2 | . 2 . . . . . . . . . Derelict Logs Recovered 6 | . . 2 . 1 . . 2 1 . . Drone Launches . | . . . . . . . . . . . Drone Recoveries . | . . . . . . . . . . . Exploration | -11 -10 -10 -10 -9 -8 -7 -7 -7 -7 -6 ------------- Run | Yrd Mat Min Exi Min Mat Fac Low Low Dat Pro Turns Passed 11858 | 87 1638 1381 1081 725 2555 1409 1133 803 218 828 Spaces Moved 4528 | 41 765 704 584 396 641 350 365 326 90 266 Core 17 | 17 . . . . . . . . . . Treads 3837 | 24 765 704 382 23 641 350 365 326 90 167 Legs 674 | . . . 202 373 . . . . . 99 Wheels . | . . . . . . . . . . . Hover . | . . . . . . . . . . . Flight . | . . . . . . . . . . . Fastest Speed 50 | 50 160 160 160 170 240 240 240 240 240 125 Average Speed 221 | 130 160 160 174 179 317 317 288 240 240 271 Slowest Speed 480 | 160 160 160 400 480 480 330 320 240 240 410 Overloaded Moves 23 | . . . . . . . . . . 23 Propulsion Burnouts . | . . . . . . . . . . . Robots Hopped . | . . . . . . . . . . . Cave-ins Triggered . | . . . . . . . . . . . Exploration Rate (%) 57 | 3 94 99 71 92 46 13 55 50 69 36 Regions Visited 10 Branch Regions 7 Pre-discovered Areas 4 | . . 1 . . 2 . . . 1 . Known Exits Taken 3 | . . . 1 . 1 1 . . . . Unknown Exits Taken 7 | 1 1 1 . 1 . . 1 1 1 . Scrap Searched 4 | . . 1 . 1 . . 2 . . . Spaces Dug 14 | . . 1 . . 8 5 . . . . Terrain Destroyed 190 | . . 22 . 17 95 29 2 1 . 24 Melee 4 | . . . . . 4 . . . . . Projectile 22 | . . 2 . . 5 8 2 1 . 4 AOE 164 | . . 20 . 17 86 21 . . . 20 Terrain Rammed . | . . . . . . . . . . . Walls Destroyed . | . . . . . . . . . . . Machines Disabled . | . . . . . . . . . . . Actions | -11 -10 -10 -10 -9 -8 -7 -7 -7 -7 -6 --------- Run | Yrd Mat Min Exi Min Mat Fac Low Low Dat Pro Total 5919 | 58 1104 870 650 406 1104 564 410 338 93 322 Wait 842 | 2 265 89 . . 341 134 2 . . 9 Move 4518 | 40 764 703 583 395 640 349 364 325 89 266 Hop . | . . . . . . . . . . . Pick Up 110 | 1 16 4 47 4 28 3 5 2 . . Fast Attach 22 | 7 2 2 3 . 5 1 . . 2 . Attach 21 | . . 2 . . 5 2 4 . . 8 Detach . | . . . . . . . . . . . Swap 93 | . 7 18 5 5 15 22 6 4 . 11 Drop 53 | . 5 2 12 . 23 4 3 2 2 . Fire 249 | 8 44 49 . 2 40 47 26 5 . 28 Melee 5 | . . . . . 5 . . . . . Ram . | . . . . . . . . . . . Kick . | . . . . . . . . . . . Crush 6 | . 1 1 . . 2 2 . . . . Escape Stasis . | . . . . . . . . . . . Rewire . | . . . . . . . . . . . Trap . | . . . . . . . . . . . Miscellaneous . | . . . . . . . . . . . Route ------- -11/Scrapyard -10/Materials (discovered 5 exits: [*Mat x3] / [*Min] / Sub) -10/Mines (discovered 4 exits: [*Mat x2] / *Exi / *Sub) -10/Exiles (discovered 2 exits: *Min x2) -9/Mines -8/Materials (discovered 3 exits: *Fac x3) -7/Factory (discovered 5 exits: Fac x3 / *Low x2) -7/Lower Caves -7/Lower Caves (discovered 2 exits: *Fac / *Dat) -7/Data Miner -6/Proximity Caves History --------- Turn | Location | Event 4 | -11/Scrapyard | Discovered new exit (range 16) 88 | -11/Scrapyard | Entered Materials 169 | -10/Materials | Discovered new exit (range 11) 302 | -10/Materials | Build established: Mutant 458 | -10/Materials | Discovered new exit (range 10) 523 | -10/Materials | Discovered new exit (range 15) 1042 | -10/Materials | Repaired Seismic Detector 1103 | -10/Materials | Discovered new exit (range 15) 1298 | -10/Materials | Learned 2 Mines zone layouts 1378 | -10/Materials | Identified exit to Subcaves 1507 | -10/Materials | Learned location of 2 exits from Subcaves 1557 | -10/Materials | Learned Storage garrison access intel 1596 | -10/Materials | Learned location of 2 exits from Subcaves 1726 | -10/Materials | Entered Mines 1749 | -10/Mines | Discovered new exit (range 5) 1935 | -10/Mines | Excavation squad dispatched 1935 | -10/Mines | A large section of the Mines collapsed 2475 | -10/Mines | Learned location of 1 exit from Materials 2543 | -10/Mines | Lost 3 parts (1u2w) 2646 | -10/Mines | Assisted by bots powering up and referring to "LRC-V3" 2685 | -10/Mines | Received a Rocket Launcher from a helpful Derelict 2830 | -10/Mines | Discovered exit to Subcaves (range 11) 3076 | -10/Mines | Discovered new exit (range 5) 3082 | -10/Mines | Lost 3 allies 3099 | -10/Mines | Deemed a non-threat by the Exiles lab entrance 3100 | -10/Mines | Discovered new exit (range 5) 3107 | -10/Mines | Entered Exiles 3108 | -10/Exiles | Identified exit to Mines 3151 | -10/Exiles | Met 8R-AWN 3173 | -10/Exiles | Met EX-HEX 3218 | -10/Exiles | Met EX-BIN 3235 | -10/Exiles | Aligned with FarCom system 3237 | -10/Exiles | Given EX-Vault access code 3279 | -10/Exiles | Opened EX-Vault 3328 | -10/Exiles | Warned to stay clear of 0b10 Research branches 3479 | -10/Exiles | Met EX-DEC 3566 | -10/Exiles | Found Field Lobotomy Kit 3576 | -10/Exiles | Found Potential Leg 3578 | -10/Exiles | Found Potential Leg 3635 | -10/Exiles | Found Cloak of Protection 4188 | -10/Exiles | Left Exiles lab with Potential Leg 4188 | -10/Exiles | Entered Mines 4481 | -9/Mines | Learned 2 Materials zone layouts 4717 | -9/Mines | Found DCF Scrap (11 items) 4850 | -9/Mines | Discovered new exit (range 14) 4913 | -9/Mines | Entered Materials 4913 | -8/Materials | Evolved 4 slots: Utility x4 4914 | -8/Materials | Identified exit to Factory 5052 | -8/Materials | Garrison activated, responded to threat 5179 | -8/Materials | Lost 3 parts (1n1u1w) 5814 | -8/Materials | Repaired Lgt. Armor Plating 5848 | -8/Materials | Repaired Imp. Treads 5878 | -8/Materials | Repaired Hcp. Matter Pod 5924 | -8/Materials | Discovered exit to Factory (range 10) 5929 | -8/Materials | Build established: Skirmisher 6327 | -8/Materials | Build established: Mutant 7009 | -8/Materials | Learned Factory trap positions 7083 | -8/Materials | Learned 4 Recycling zone layouts 7146 | -8/Materials | Learned location of Zion (-6) 7246 | -8/Materials | Learned location of 2 exits from Factory 7334 | -8/Materials | Learned location of Storage (-7) 7392 | -8/Materials | Learned Factory repair station intel 7459 | -8/Materials | Learned location of 2 exits from Factory 7468 | -8/Materials | Entered Factory 7468 | -7/Factory | Evolved 2 slots: Power x1, Utility x1 7469 | -7/Factory | Identified exit to Lower Caves 7470 | -7/Factory | Identified exit to Factory 7471 | -7/Factory | Loaded intel: 106 trap records 7472 | -7/Factory | Loaded intel: 6 repair station locations 8509 | -7/Factory | Cargo convoy interrupted 8877 | -7/Factory | Entered Lower Caves 9227 | -7/Lower Caves | Learned location of 1 exit from Factory 9262 | -7/Lower Caves | Learned location of 1 exit from Factory 9523 | -7/Lower Caves | Lost 3 parts (3u) 9732 | -7/Lower Caves | Encountered a Warlord checkpoint 9761 | -7/Lower Caves | Attracted the attention of an 0b10 checkpoint 9788 | -7/Lower Caves | Attracted the attention of an 0b10 outpost 9841 | -7/Lower Caves | Discovered new exit (range 8) 9850 | -7/Lower Caves | Lost 3 allies 9932 | -7/Lower Caves | Attacked by a delusional Derelict stockpiling parts 10010 | -7/Lower Caves | Entered another Lower Caves area 10018 | -7/Lower Caves | Discovered exit to Factory (range 11) 10118 | -7/Lower Caves | Learned Factory stockpile data 10380 | -7/Lower Caves | Core integrity fell below 50% 10461 | -7/Lower Caves | Discovered new exit (range 14) 10813 | -7/Lower Caves | Entered Data Miner 10814 | -7/Data Miner | Discovered new exit (range 6) 10860 | -7/Data Miner | Met Data Miner 10920 | -7/Data Miner | Learned location of Section 7 (-3) 10920 | -7/Data Miner | Acquired the access code to Warlord's prototype stash 10942 | -7/Data Miner | Received God Mode back door access code from Data Miner 11031 | -7/Data Miner | Entered Proximity Caves 11127 | -6/Proximity Caves | Spotter reported a threat 11130 | -6/Proximity Caves | Spotter reported a threat 11177 | -6/Proximity Caves | Lost 4 parts (2n2u) 11441 | -6/Proximity Caves | Escorted by Enhanced Grunt 11624 | -6/Proximity Caves | Attracted the attention of an 0b10 checkpoint 11629 | -6/Proximity Caves | Core integrity fell below 20% 11669 | -6/Proximity Caves | Lost 5 parts (1p2u2w) 11835 | -6/Proximity Caves | Attracted the attention of an 0b10 base 11859 | -6/Proximity Caves | Destroyed by G-50 Soldier with Heavy Laser Last Messages --------------- 11636_ Cryofiber Web destroyed. 11637_ Cld. Deuterium Engine destroyed. 11638_ Hvy. Ion Cannon destroyed. 11640_ Z9JKM> QKGMH&7CFWQE NDINKZ8ROU9A 11695_ System corrupted: Heat flow error (+173). 11696_ Acquired 4 matter. 11712_ System corrupted: Energy discharge (-107). 11742_ L##NRGTU4XUREQ#4U1GZO7XAUO5PT 11805_ System corrupted: Heat flow error (+154). 11816_ Machine disabled. 11841_ Imp. Deuterium Engine destroyed. 11846_ System corrupted: IFF burst signal emitted. 11848_ Critical hit (Burn: +37). 11855_ Penetrated by Slug. Map ----- +----------------------------------------------------+ | ?????????????????????????????????????????????????? | | ?????????????????????????????????????????????????? | | ?????????????????????????????????????????????????? | | ?????????????????????????????????????????????????? | | ?????????????????????????????????????????????????? | | ?????????????????????????????????????????????????? | | ?????????????????????????????????????????????????? | | ?????????????????????????????????????????????????? | | ?????????????????????????????????????????????????? | | ?????????????????????????????????????????????????? | | ?????????????????????????????????????????????????? | | ?????????????????????????????????????????????????? | | ?????????????????????????????????????????????????? | | ?????????????????????????????????????????????????? | | ?????????????????????????????????????????????????? | | ?????????????????????????????????????????????????? | | ?????????????????????????????????????????????????? | | ?????????????????????????????????????????????????? | | ????????????????????????????????????#????????????? | | ????????????????????????????????### #????????????? | | ??????????????????????????????? #????????????? | | ?????????????????????????????? #????????????? | | ??????????????????????####??? #????????????? | | ????????????????#????## ### # #????????? | | ????????? ### #### ????????? | | ????????? @ ????????? | | ????????????# ### ????????? | | ????????????# ####### b##????? h ????????? | | ??????????????????### #????????? ?????????? | | ????????????# ### #??????????????????????? | | ????????????# #######????????????????? | | ????????????## g #????????????????? | | ?????????????## g #????????????????? | | ??????????????# g ##???????????????? | | ?????????????# #???????????????? | | ?????????????## ## #???????????????? | | ??????????????# ###?# ##???????????????? | | ??????????????# #????# ###????????????????? | | ??????????????##?????# ##??????????????????? | | ???????????? ???????# ##???????????????????? | | ???????????? #?????## ##????????????????????? | | ??????????? #????### #?????????????????????? | | ???????????? ?????# #?????????????????????? | | ?????????????? ????# #?????????????????????? | | ???????????????? ##### #?????????????????????? | | ?????????????????? # #?????????????????????? | | ???????????????????? # #?????????????????????? | | ?????????????????????# # #?????????????????????? | | ?????????????????????# #?????????????????????? | | ?????????????????????# ####?????????????????????? | +----------------------------------------------------+ Best States ------------- Heat Dissipation 62 Energy Generation 31 Energy Capacity 520 Matter Stores 300 Matter Capacity 300 Sight Range 16 Robot Scan Range 15 Terrain Scan Range 16 Terrain Scan Density 10 Jamming Range 12 Additional Mass Support 9 Base Temperature (-) 100 Armor Coverage 525 Propulsion Shielding 33 Weapon Shielding 66 Weapon Cycling 15 Evasion (%) 40 Recoil Reduction 2 Energy Filtering 30 Offensive Hacking 10 Item Schematics ----------------- Lrg. Storage Unit | -8/Materials | Scanalyzed Plasma Cutter | -8/Materials | Scanalyzed Hcp. Matter Pod | -8/Materials | Scanalyzed Seismic Detector | -8/Materials | Scanalyzed Imp. Signal Interpreter | -8/Materials | Scanalyzed Adv. Weight Redist. System | -7/Factory | Scanalyzed Imp. Sensor Array | -7/Factory | Scanalyzed Hacking Suite | -7/Factory | Scanalyzed Combat Drone Bay | -7/Data Miner | Free Lgt. Regenerative Plating | -7/Data Miner | Free Cld. Cesium-ion Thruster | -7/Data Miner | Free Exp. Targeting Computer | -7/Data Miner | Free Com. Ion Cannon | -7/Data Miner | Free Arm. Medium Treads | -7/Data Miner | Free Imp. Recalibrator | -7/Data Miner | Free Hvy. Shock Bomb Launcher | -7/Data Miner | Free Hvy. Disruptor Cannon | -7/Data Miner | Free Robot Schematics ------------------ M-13 Machinist | -10/Materials | Hacked R-10 Processor | -7/Data Miner | Free H-66 Slayer | -7/Data Miner | Free S-27 Virus | -7/Data Miner | Free B-48 Gladiator | -7/Data Miner | Free A-15 Conveyor | -7/Data Miner | Free L-41 Fighter | -7/Data Miner | Free Fabricated ------------ Nothing Alien Tech Used ----------------- None Achievements -------------- None Challenges ------------ None Game ------ Seed MomentumCoreBroadsword Manual? 0 Play Time 01:07:55 Cumulative 211.0 hours Start 2024.09.04 @ 15:07:19 End 2024.09.04 @ 17:26:05 Sessions 1 Manual Loads 0 Difficulty Rogue Special Mode None Game No. 184 Rogue 184 Adventurer 0 Explorer 0 Win Type - Total 1 Types 0/0/0/1/0/0/0/0/0 Lore% 63 Gallery% 73 Achievement% 54 Wizard Run 0 Options --------- Layout 2 ASCII 0 Keyboard 1 Movement Vi Keybinds 0 Fullscreen 1 Font 32/SmallcapsGlow Map View 77x44 Zoom Use 0% Tactical HUD 1 Map Filters NONE Filters NONE Steam 1 RUN: 29c28304-12c6-4519-8aad-14b9c31fa193